bitfinex-derivatives/quotes_SOLF0:USTF0_20241016
["timestamp","ask_amount","ask_price","bid_price","bid_amount"]
[1729105445748,3.2443,154.12,154.11,12.2173271]
[1729105447051,4.92,154.18,154.11,12.2173271]
[1729105447252,13.84,154.18,154.13,8.92]
[1729105447854,13.84,154.18,154.1,12.4144]
[1729105448055,13.84,154.18,154.12,8.92]
[1729105448455,3.2442,154.13,154.12,8.92]
[1729105448758,13.84,154.18,154.12,8.92]
[1729105449351,13.84,154.18,154.12,12.1642]
[1729105450052,3.2439,154.15,154.12,12.1642]
[1729105451949,3.2441,154.14,154.12,8.92]
[1729105453758,3.2441,154.13,154.12,8.92]
[1729105456765,3.2441,154.13,154.11,3.2445]
[1729105456960,13.84,154.18,154.12,8.92]
[1729105457261,236.9631,154.3,154.14,8.92]
[1729105457464,8.92,154.22,154.17,3.2433]
[1729105457668,13.84,154.22,154.17,8.92]
[1729105458359,13.84,154.22,154.16,14.9844]
[1729105458668,3.243,154.19,154.16,14.9844]
[1729105461161,3.2427,154.2,154.18,3.2431]
[1729105461365,3.2427,154.2,154.18,3.25193053]
[1729105461566,3.2427,154.2,154.17,8.92]
[1729105461969,8.92,154.22,154.17,8.92]
[1729105462163,3.2429,154.19,154.17,12.1632]
[1729105463663,3.2428,154.2,154.17,12.1632]
[1729105464267,3.2429,154.19,154.17,12.1632]
[1729105467962,3.2428,154.2,154.17,12.1632]
[1729105470062,8.92,154.22,154.17,12.1632]
[1729105470063,3.2429,154.19,154.17,12.1632]
[1729105470567,3.2429,154.19,154.17,8.92]
[1729105472775,3.2431,154.18,154.16,11.7411]
[1729105473772,3.2431,154.18,154.16,14.9846]
[1729105476175,3.2431,154.18,154.17,8.92]
[1729105476476,4.84,154.22,154.17,8.92]
[1729105477573,3.2425,154.21,154.17,8.92]
[1729105477879,4.84,154.22,154.17,8.92]
[1729105478073,13.76,154.23,154.17,8.92]
[1729105479376,3.243,154.19,154.17,8.92]
[1729105480278,3.243,154.19,154.17,12.1633]
[1729105483977,3.243,154.19,154.17,8.92]
[1729105484178,3.2431,154.18,154.17,8.92]
[1729105485777,3.243,154.19,154.17,8.92]
[1729105487881,3.243,154.19,154.16,14.9845]
[1729105488083,8.92,154.2,154.16,2.8211]
[1729105488289,8.92,154.17,154.12,3.2442]
[1729105488482,8.92,154.17,154.11,8.92]
[1729105488682,3.244,154.14,154.11,12.1644]
[1729105489384,3.2442,154.13,154.11,12.1644]
[1729105489994,3.244,154.14,154.11,12.1644]
[1729105491993,3.244,154.14,154.13,8.92]
[1729105492191,8.92,154.18,154.13,8.92]
[1729105492699,3.2438,154.15,154.13,8.92]
[1729105495792,3.2434,154.17,154.13,8.92]
[1729105495993,13.66,154.18,154.13,8.92]
[1729105496594,3.2438,154.15,154.13,8.92]
[1729105497702,16.04989369,154.25,154.14,8.92]
[1729105497897,3.2433,154.17,154.16,8.92]
[1729105501799,13.66,154.2,154.13,1.4422]
[1729105501989,8.92,154.17,154.12,8.92]
[1729105502296,8.92,154.18,154.12,8.92]
[1729105503496,3.244,154.14,154.12,12.1643]
[1729105506197,3.2438,154.15,154.13,12.1641]
[1729105507297,3.2434,154.17,154.13,8.92]
[1729105507496,8.92,154.18,154.13,8.92]
[1729105507898,3.2436,154.16,154.13,12.1639]
[1729105508201,4.74,154.2,154.1,4.60945604]
[1729105508202,4.74,154.2,154.15,8.92]
[1729105508406,3.2434,154.17,154.15,12.1635]
[1729105509308,3.2435,154.16,154.14,14.9357]
[1729105509508,3.2435,154.16,154.14,6.0157]
[1729105510809,8.92,154.18,154.12,12.1642]
[1729105511000,4.74,154.2,154.12,8.92]
[1729105511202,3.2439,154.15,154.13,8.92]
[1729105511405,8.92,154.18,154.13,8.92]
[1729105511904,3.2438,154.15,154.13,8.92]
[1729105512403,8.92,154.18,154.13,8.92]
[1729105512608,3.2439,154.14,154.13,8.92]
[1729105521916,8.92,154.18,154.13,8.92]
[1729105522114,8.92,154.18,154.11,1.3898]
[1729105522115,8.92,154.22,154.16,8.92]
[1729105522315,4.74,154.22,154.17,8.92]
[1729105522517,114.83096751,154.23,154.17,8.92]
[1729105522815,114.83096751,154.23,154.19,8.92]
[1729105522816,101.17096751,154.23,154.19,8.92]
[1729105523021,101.17096751,154.23,154.19,12.20553818]
[1729105523315,3.2423,154.22,154.19,15.44833818]
[1729105524119,104.41306751,154.23,154.21,8.92]
[1729105524517,4.74,154.27,154.22,8.92]
[1729105525525,8.92,154.25,154.19,10.3224]
[1729105526117,8.92,154.25,154.19,13.5651]
[1729105527223,3.2422,154.23,154.19,13.5651]
[1729105528826,3.2422,154.23,154.2,8.92]
[1729105529925,3.2422,154.23,154.2,12.1626]
[1729105530121,8.92,154.26,154.2,8.92]
[1729105530325,3.2423,154.22,154.2,8.92]
[1729105531427,3.2423,154.22,154.2,12.1626]
[1729105535532,3.2422,154.23,154.2,12.1626]
[1729105535928,13.66,154.27,154.22,8.92]
[1729105536130,3.2419,154.24,154.22,8.92]
[1729105537244,3.2421,154.23,154.21,4.5699]
[1729105538234,3.2421,154.23,154.21,1.3276]
[1729105538634,3.2422,154.22,154.21,1.3276]
[1729105538930,3.2422,154.22,154.2,8.92]
[1729105539331,3.2422,154.22,154.2,12.1626]
[1729105546235,8.92,154.25,154.19,10.3224]
[1729105546437,3.2427,154.2,154.19,10.3224]
[1729105548250,3.2425,154.21,154.19,10.3224]
[1729105548450,3.2425,154.21,154.19,1.4024]
[1729105548743,3.2425,154.21,154.19,10.3224]
[1729105550147,3.2425,154.21,154.2,8.92]
[1729105550347,3.2422,154.23,154.2,8.92]
[1729105550643,16.05918599,154.34,154.22,8.92]
[1729105550840,3.2403,154.32,154.27,8.92]
[1729105551042,8.92,154.32,154.27,8.92]
[1729105551643,3.241,154.28,154.27,12.08192205]
[1729105553040,3.241,154.28,154.27,3.16192205]
[1729105553241,8.92,154.3,154.24,13.66]
[1729105553451,3.2416,154.26,154.24,8.92]
[1729105554849,8.92,154.28,154.24,8.92]
[1729105555143,3.2416,154.25,154.24,8.92]
[1729105558349,3.2419,154.24,154.22,16.9021]
[1729105558548,3.2419,154.24,154.22,13.66]
[1729105561045,3.2419,154.24,154.22,8.92]
[1729105561649,3.242,154.23,154.22,8.92]
[1729105564849,3.242,154.23,154.21,12.1623]
[1729105570355,3.2419,154.24,154.21,12.1623]
[1729105574465,3.2416,154.26,154.23,8.92]
[1729105574767,8.92,154.31,154.24,8.92]
[1729105575062,3.2407,154.3,154.27,8.92]
[1729105575252,13.66,154.34,154.28,8.92]
[1729105575456,13.66,154.34,154.28,12.1609]
[1729105575659,3.2407,154.3,154.28,8.92]
[1729105576060,8.92,154.32,154.28,3.23210954]
[1729105576257,8.92,154.32,154.27,8.92]
[1729105576258,3.2408,154.29,154.27,12.1611]
[1729105576662,8.92,154.32,154.26,13.564]
[1729105576858,3.2409,154.29,154.26,13.564]
[1729105577168,3.2409,154.29,154.26,10.3226]
[1729105577371,8.92,154.32,154.27,3.2412]
[1729105577576,3.2407,154.3,154.27,12.1612]
[1729105582368,3.2407,154.3,154.28,3.241]
[1729105582674,3.2407,154.3,154.27,8.92]
[1729105583376,3.2407,154.3,154.27,12.161]
[1729105583568,13.66,154.34,154.28,8.92]
[1729105583770,3.2405,154.31,154.28,8.92]
[1729105585674,3.2405,154.31,154.29,3.2408]
[1729105586279,3.2405,154.31,154.28,8.92]
[1729105586481,3.2405,154.31,154.28,12.1609]
[1729105588578,8.92,154.34,154.28,12.1609]
[1729105588775,3.2406,154.3,154.28,12.1609]
[1729105589075,8.92,154.33,154.27,3.2411]
[1729105589278,8.92,154.31,154.26,12.10802942]
[1729105589477,8.92,154.3,154.26,3.18802942]
[1729105589676,3.2414,154.26,154.25,11.7359]
[1729105590477,8.92,154.3,154.25,11.7359]
[1729105590681,3.2413,154.27,154.25,11.7359]
[1729105598185,3.2413,154.27,154.25,14.9775]
[1729105598989,3.2418,154.25,154.23,3.242]
[1729105599190,8.92,154.28,154.22,8.92]
[1729105600087,8.92,154.27,154.21,13.66]
[1729105600479,8.92,154.27,154.21,16.9023]
[1729105600682,8.92,154.25,154.2,2.7232]
[1729105601081,3.2424,154.22,154.2,2.7232]
[1729105601688,3.2422,154.23,154.21,8.92]
[1729105603486,3.2422,154.23,154.21,12.1624]
[1729105605891,3.2422,154.23,154.21,8.92]
[1729105614001,3.2418,154.25,154.22,12.1621]
[1729105615195,3.2418,154.25,154.22,8.92]
[1729105615400,3.2418,154.25,154.2,2.7232]
[1729105615401,3.2418,154.25,154.23,12.1619]
[1729105615703,3.2413,154.27,154.23,8.92]
[1729105615896,20.80269299,154.35,154.28,3.2409]
[1729105616203,13.66,154.35,154.29,8.92]
[1729105616396,4.74,154.35,154.29,8.92]
[1729105616899,3.2404,154.31,154.29,12.15617145]
[1729105617095,4.74,154.35,154.29,12.15617145]
[1729105617294,3.2403,154.32,154.29,15.39687145]
[1729105617494,4.74,154.35,154.29,15.39687145]
[1729105617696,8.92,154.34,154.29,15.39687145]
[1729105618400,3.2402,154.32,154.29,15.39687145]
[1729105620296,3.2406,154.3,154.29,3.23617145]
[1729105620493,8.92,154.3,154.19,1.4337]
[1729105620698,8.92,154.3,154.25,8.92]
[1729105620905,4.74,154.31,154.26,8.92]
[1729105621201,4.74,154.31,154.26,12.13558205]
[1729105621596,3.2411,154.28,154.26,12.13558205]
[1729105623507,3.2411,154.28,154.26,15.37688205]
[1729105629503,16.06269299,154.37,154.27,8.92]
[1729105629706,8.92,154.35,154.29,8.92]
[1729105630006,3.2403,154.32,154.29,12.1606]
[1729105630710,3.2404,154.31,154.29,12.1606]
[1729105631009,3.2404,154.31,154.28,4.74]
[1729105631198,3.2404,154.31,154.28,7.9809]
[1729105632114,3.2404,154.31,154.29,12.1608]
[1729105632115,3.2403,154.31,154.29,12.1608]
[1729105637617,4.74,154.35,154.29,8.92]
[1729105637819,3.2401,154.33,154.3,3.2404]
[1729105641716,107.57525969,154.38,154.31,8.92]
[1729105641915,4.74,154.37,154.33,8.92]
[1729105642117,110.01745969,154.38,154.33,8.92]
[1729105642514,3.2395,154.35,154.33,12.1599]
[1729105642708,110.01745969,154.38,154.33,12.1599]
[1729105643216,110.01745969,154.38,154.34,3.2396]
[1729105643424,101.09745969,154.38,154.34,12.1596]
[1729105644019,101.09745969,154.38,154.34,15.32002746]
[1729105645126,3.2391,154.37,154.34,15.32002746]
[1729105645519,101.09745969,154.38,154.34,15.32002746]
[1729105646019,3.2392,154.37,154.34,15.32002746]
[1729105646631,3.2392,154.37,154.34,6.40002746]
[1729105650921,3.2393,154.36,154.34,6.40002746]
[1729105660443,3.2395,154.35,154.34,3.16042746]
[1729105660841,8.92,154.37,154.33,1.3708]
[1729105661044,3.2397,154.34,154.33,1.3708]
[1729105661746,3.2399,154.33,154.32,8.92]
[1729105662345,3.2399,154.33,154.29,1.4535]
[1729105662346,3.2406,154.3,154.29,1.4535]
[1729105662540,8.92,154.34,154.28,1.4433]
[1729105662846,3.2411,154.28,154.27,8.92]
[1729105663048,8.92,154.33,154.27,8.92]
[1729105663248,4.74,154.36,154.3,8.92]
[1729105663550,8.92,154.36,154.3,12.18712727]
[1729105664049,3.24,154.33,154.3,15.42752727]
[1729105667144,3.2403,154.31,154.3,3.26712727]
[1729105667344,3.2403,154.31,154.29,11.6559]
[1729105667851,3.2403,154.31,154.29,14.83403634]
[1729105669051,3.2403,154.31,154.29,18.07473634]
[1729105674453,3.2403,154.31,154.3,8.92]
[1729105683264,3.2406,154.3,154.29,3.17813634]
[1729105683462,8.92,154.32,154.27,13.66]
[1729105683963,8.92,154.32,154.27,16.87386908]
[1729105684163,3.2409,154.29,154.27,20.11496908]
[1729105684558,3.2409,154.29,154.28,8.92]
[1729105687369,4.74,154.33,154.29,3.2408]
[1729105687570,4.74,154.33,154.3,8.92]
[1729105688069,3.2401,154.32,154.3,12.1605]
[1729105688362,13.66,154.35,154.3,8.92]
[1729105688764,3.2398,154.34,154.3,8.92]
[1729105688968,13.66,154.35,154.3,8.92]
[1729105689360,1.3714,154.39,154.3,8.92]
[1729105689361,3.2403,154.32,154.3,8.92]
[1729105689573,4.74,154.39,154.31,8.92]
[1729105689867,4.74,154.39,154.34,8.92]
[1729105690073,3.2395,154.35,154.34,8.92]
[1729105691062,16.03468522,154.41,154.34,8.92]
[1729105691260,1.4224,154.47,154.38,8.92]
[1729105691261,105.78245642,154.42,154.38,8.92]
[1729105691562,3.2387,154.39,154.38,8.92]
[1729105691763,105.78245642,154.42,154.38,15.34663368]
[1729105691965,105.78245642,154.42,154.39,8.92]
[1729105692165,3.2384,154.41,154.39,8.92]
[1729105695172,104.28065642,154.42,154.39,12.1586]
[1729105695765,3.2382,154.41,154.39,8.92]
[1729105696271,104.28055642,154.42,154.39,12.1585]
[1729105696676,101.04245642,154.42,154.39,8.92]
[1729105697868,104.28065642,154.42,154.39,12.1585]
[1729105698064,101.04245642,154.42,154.39,8.92]
[1729105698270,104.28055642,154.42,154.39,12.1587]
[1729105698470,104.28055642,154.42,154.39,8.92]
[1729105698766,101.04245642,154.42,154.39,8.92]
[1729105699476,3.2385,154.4,154.39,8.92]
[1729105701077,3.2383,154.41,154.39,8.92]
[1729105701269,3.2383,154.41,154.4,8.92]
[1729105702876,3.2386,154.4,154.39,8.92]
[1729105708477,4.74,154.47,154.39,8.92]
[1729105708680,13.66,154.47,154.41,8.92]
[1729105708976,3.238,154.42,154.41,8.92]
[1729105709382,8.92,154.45,154.4,8.92]
[1729105710380,3.2382,154.41,154.39,1.4542]
[1729105710582,3.2382,154.41,154.4,8.92]
[1729105711984,3.2385,154.4,154.39,10.3742]
[1729105715177,8.92,154.44,154.38,12.10773368]
[1729105715383,3.2387,154.39,154.38,8.92]
[1729105715879,3.2387,154.39,154.38,12.23218351]
[1729105716081,3.2387,154.39,154.38,3.31218351]
[1729105716281,8.92,154.41,154.35,8.92]
[1729105716477,8.92,154.41,154.35,12.07867075]
[1729105716985,3.2393,154.36,154.35,12.07867075]
[1729105723389,3.2393,154.36,154.35,3.15867075]
[1729105723587,8.92,154.39,154.34,8.92]
[1729105723782,3.2395,154.35,154.34,8.92]
[1729105723988,15.3974,154.39,154.33,4.74]
[1729105724189,3.2397,154.34,154.33,4.74]
[1729105724493,3.2397,154.34,154.33,13.66]
[1729105727798,3.2397,154.34,154.33,13.66]
[1729105732095,2.7951,154.42,154.33,13.66]
[1729105732291,3.2389,154.38,154.37,8.92]
[1729105732598,3.2389,154.38,154.37,12.13683078]
[1729105735899,109.95519952,154.44,154.37,12.13683078]
[1729105736098,3.2389,154.39,154.37,3.21683078]
[1729105736297,3.2389,154.39,154.38,8.92]
[1729105736496,3.2389,154.39,154.38,12.21328868]
[1729105736702,3.2381,154.42,154.38,12.21328868]
[1729105736899,7.4045,154.48,154.38,3.29328868]
[1729105736900,2.6845,154.48,154.38,3.29328868]
[1729105737101,1.3345,154.48,154.44,8.92]
[1729105737295,3.238,154.43,154.41,4.72]
[1729105737499,3.238,154.43,154.42,8.92]
[1729105737700,3.238,154.43,154.42,12.20854497]
[1729105742609,3.238,154.43,154.42,3.28854497]
[1729105742905,3.2385,154.4,154.39,13.64]
[1729105749712,3.2376,154.44,154.39,16.8787]
[1729105749911,4.72,154.46,154.42,8.92]
[1729105750216,3.2371,154.47,154.43,8.92]
[1729105750413,16.7282,154.48,154.43,8.92]
[1729105750616,16.7282,154.48,154.4,4.5875]
[1729105750814,16.7282,154.48,154.43,8.92]
[1729105751014,3.2376,154.44,154.43,12.15392267]
[1729105752315,8.92,154.51,154.43,16.87392267]
[1729105752508,8.92,154.51,154.45,8.92]
[1729105752819,6.472,154.52,154.45,8.92]
[1729105753019,8.92,154.51,154.45,8.92]
[1729105753217,3.2372,154.46,154.45,8.92]
[1729105761122,8.92,154.51,154.43,11.19172267]
[1729105761323,3.2375,154.45,154.43,11.19172267]
[1729105765834,3.2375,154.45,154.44,8.92]
[1729105767037,3.2375,154.45,154.43,11.19172267]
[1729105767332,3.2375,154.45,154.44,8.92]
[1729105770633,3.2373,154.46,154.44,12.1576]
[1729105770829,3.2373,154.46,154.45,8.92]
[1729105776849,3.2376,154.44,154.43,3.23392267]
[1729105777041,3.2376,154.44,154.43,13.64]
[1729105777348,3.2376,154.44,154.43,16.93449083]
[1729105779349,8.92,154.51,154.43,16.93449083]
[1729105779643,8.92,154.5,154.46,8.92]
[1729105779846,3.237,154.47,154.46,8.92]
[1729105794753,6.4724,154.51,154.43,3.29449083]
[1729105795056,3.2376,154.44,154.42,7.958]
[1729105796750,3.2376,154.44,154.43,8.92]
[1729105796957,3.2375,154.45,154.43,12.11629677]
[1729105797155,3.2375,154.45,154.44,8.92]
[1729105797957,3.2373,154.46,154.44,12.18039103]
[1729105798150,3.2373,154.46,154.45,8.92]
[1729105799254,3.2374,154.45,154.44,3.26039103]
[1729105799455,3.2374,154.45,154.44,8.92]
[1729105799758,3.2374,154.45,154.44,12.1175916]
[1729105800857,3.2374,154.45,154.44,3.1975916]
[1729105801062,3.2374,154.45,154.44,8.92]
[1729105801354,3.2374,154.45,154.44,12.08198368]
[1729105805557,3.2369,154.48,154.44,12.08198368]
[1729105805862,3.2369,154.48,154.47,8.92]
[1729105806455,13.64,154.54,154.47,8.92]
[1729105806654,13.64,154.54,154.47,15.42408891]
[1729105806856,13.64,154.54,154.47,3.26718891]
[1729105807052,8.92,154.52,154.47,8.92]
[1729105807259,3.2368,154.48,154.47,12.2020795]
[1729105807860,3.2367,154.49,154.47,15.4390795]
[1729105808074,3.2367,154.49,154.48,8.92]
[1729105808457,15.50566975,154.57,154.48,8.92]
[1729105808458,3.2363,154.51,154.48,12.1566]
[1729105808668,3.2363,154.51,154.5,8.92]
[1729105809062,13.64,154.56,154.5,8.92]
[1729105809259,8.92,154.56,154.5,8.92]
[1729105809464,13.64,154.56,154.5,8.92]
[1729105809762,3.236,154.52,154.5,8.92]
[1729105811762,3.236,154.52,154.5,12.1563]
[1729105812161,3.2359,154.53,154.5,12.1563]
[1729105812664,3.2359,154.53,154.52,8.92]
[1729105816671,3.2359,154.53,154.52,8.92]
[1729105818867,11.1891,154.59,154.52,8.92]
[1729105818868,3.2346,154.59,154.54,3.2355]
[1729105819067,8.92,154.63,154.57,8.92]
[1729105819269,3.2673,154.64,154.6,8.92]
[1729105819773,8.92,154.62,154.55,1.3877]
[1729105820066,8.92,154.62,154.56,8.92]
[1729105820272,8.92,154.6,154.52,4.72]
[1729105820463,8.92,154.6,154.54,8.92]
[1729105821472,3.2354,154.55,154.54,8.92]
[1729105832482,5.482,154.63,154.52,12.0797775]
[1729105832483,3.2357,154.53,154.52,12.0797775]
[1729105833778,3.2357,154.53,154.5,8.92]
[1729105834088,8.92,154.52,154.47,13.64]
[1729105834278,8.92,154.52,154.47,8.92]
[1729105834478,3.2368,154.48,154.47,8.92]
[1729105853497,8.92,154.51,154.45,8.92]
[1729105853696,3.2372,154.46,154.45,8.92]
[1729105856508,8.92,154.51,154.45,8.92]
[1729105856714,3.2371,154.47,154.45,8.92]
[1729105857006,3.2371,154.47,154.45,12.1573]
[1729105857203,3.2371,154.47,154.45,8.92]
[1729105859707,8.92,154.5,154.44,3.2134976]
[1729105859915,3.2374,154.45,154.42,8.92]
[1729105860109,8.92,154.47,154.42,12.11426462]
[1729105860411,3.2376,154.45,154.43,8.92]
[1729105861907,1.3625,154.54,154.43,8.92]
[1729105862109,3.2371,154.47,154.44,12.1575]
[1729105862305,3.2371,154.47,154.44,8.92]
[1729105862510,4.72,154.52,154.46,8.92]
[1729105862705,3.2368,154.48,154.44,4.72]
[1729105863016,4.72,154.52,154.46,8.92]
[1729105863516,8.92,154.51,154.46,8.92]
[1729105864012,3.237,154.47,154.45,12.1573]
[1729105864213,3.237,154.47,154.44,8.02722423]
[1729105864214,8.92,154.5,154.44,8.02722423]
[1729105864411,8.92,154.5,154.45,8.92]
[1729105865207,3.2373,154.46,154.45,8.92]
[1729105877012,3.2374,154.45,154.44,3.30722423]
[1729105877224,3.2374,154.45,154.42,8.92]
[1729105878122,3.2372,154.46,154.43,8.92]
[1729105878424,8.92,154.49,154.41,7.88715599]
[1729105878623,3.2376,154.44,154.42,3.238]
[1729105878917,3.2376,154.44,154.43,8.92]
[1729105882318,4.72,154.52,154.43,12.1578]
[1729105882522,8.92,154.5,154.45,8.92]
[1729105883528,3.2374,154.46,154.45,8.92]
[1729105886629,8.92,154.5,154.43,12.1578]
[1729105886837,3.2374,154.45,154.43,12.1578]
[1729105888331,3.237,154.47,154.44,3.2375]
[1729105888629,1.3625,154.54,154.45,8.92]
[1729105888827,1.3625,154.54,154.47,8.92]
[1729105888828,8.92,154.52,154.47,8.92]
[1729105889234,3.2367,154.49,154.47,8.92]
[1729105890035,8.92,154.52,154.47,8.92]
[1729105890237,3.2368,154.48,154.47,8.92]
[1729105900441,8.92,154.52,154.47,12.157]
[1729105900442,3.2366,154.49,154.47,12.157]
[1729105901435,3.2366,154.49,154.47,8.92]
[1729105903043,3.2368,154.48,154.46,8.92]
[1729105905538,3.237,154.47,154.45,4.72]
[1729105909441,3.237,154.47,154.46,8.92]
[1729105910751,8.92,154.49,154.44,1.3583]
[1729105910951,3.2374,154.45,154.44,1.3583]
[1729105912151,8.92,154.49,154.43,16.3284]
[1729105912152,8.92,154.49,154.43,4.72]
[1729105912354,3.2376,154.44,154.42,16.8779]
[1729105912554,3.2376,154.44,154.42,13.64]
[1729105914454,3.2376,154.44,154.42,16.878]
[1729105916549,3.2376,154.44,154.42,12.158]
[1729105916754,3.2378,154.43,154.42,8.92]
[1729105917046,3.2378,154.43,154.41,6.40535599]
[1729105917047,8.92,154.47,154.41,3.16715599]
[1729105917252,8.92,154.45,154.4,4.72]
[1729105917449,8.92,154.45,154.4,3.27549747]
[1729105917647,8.92,154.45,154.39,12.1585]
[1729105917648,8.92,154.45,154.39,16.8785]
[1729105917850,3.2382,154.42,154.39,16.8785]
[1729105918357,3.2382,154.42,154.39,20.04615257]
[1729105918856,3.2382,154.42,154.4,3.2384]
[1729105922652,8.92,154.45,154.39,7.88765257]
[1729105922956,3.2384,154.41,154.39,20.04615257]
[1729105923562,3.2385,154.4,154.39,12.08765257]
[1729105923857,3.2385,154.4,154.39,3.16765257]
[1729105924049,3.2385,154.4,154.38,16.8788]
[1729105924445,3.2385,154.4,154.38,20.05670298]
[1729105925856,3.2385,154.4,154.38,15.33670298]
[1729105926857,3.2385,154.4,154.39,8.92]
[1729105928355,3.2384,154.41,154.39,8.92]
[1729105931056,3.2384,154.41,154.39,12.1587]
[1729105931463,1.3704,154.48,154.39,8.92]
[1729105931652,0.7657,154.52,154.44,8.92]
[1729105931858,8.92,154.5,154.45,8.92]
[1729105932058,3.2369,154.48,154.45,12.1574]
[1729105932459,13.64,154.5,154.45,12.1574]
[1729105932659,13.64,154.5,154.45,15.34825551]
[1729105934165,3.237,154.48,154.45,15.34825551]
[1729105935167,13.64,154.5,154.45,3.19085551]
[1729105935463,13.64,154.5,154.44,8.92]
[1729105935464,3.2372,154.46,154.44,8.92]
[1729105940474,4.72,154.51,154.45,3.20697611]
[1729105940475,8.92,154.47,154.45,3.20697611]
[1729105940669,8.92,154.47,154.42,10.3135]
[1729105940973,8.92,154.47,154.38,1.3686]
[1729105940974,8.92,154.46,154.4,8.92]
[1729105941175,3.2381,154.42,154.4,8.92]
[1729105941374,3.2381,154.42,154.4,12.1583]
[1729105942076,8.92,154.46,154.4,12.1583]
[1729105942273,3.2379,154.43,154.41,3.2382]
[1729105947381,8.92,154.46,154.4,8.92]
[1729105948981,3.2382,154.42,154.4,8.92]
[1729105961797,3.2378,154.44,154.4,8.92]
[1729105962599,3.2378,154.44,154.41,3.2381]
[1729105963092,3.2378,154.44,154.41,12.158]
[1729105967401,3.2378,154.44,154.41,3.238]
[1729105969396,3.2382,154.42,154.4,3.2384]
[1729105969597,3.2382,154.42,154.4,12.1584]
[1729105970597,6.0497,154.48,154.4,8.92]
[1729105970799,3.2377,154.44,154.41,12.1581]
[1729105971701,3.2378,154.43,154.41,12.1581]
[1729105975102,8.92,154.47,154.41,8.92]
[1729105975306,3.2369,154.48,154.45,3.2373]
[1729105975494,100.9826673,154.52,154.47,8.92]
[1729105975495,4.72,154.51,154.47,8.92]
[1729105975701,100.9826673,154.52,154.47,8.92]
[1729105976203,100.9826673,154.52,154.47,12.22431796]
[1729105976403,3.2367,154.49,154.47,12.22431796]
[1729105976609,3.2367,154.49,154.47,3.30431796]
[1729105976800,3.2367,154.49,154.46,12.1571]
[1729105977400,3.2367,154.49,154.46,15.31672457]
[1729105978105,3.2367,154.49,154.46,6.39672457]
[1729105980302,3.2367,154.49,154.47,12.157]
[1729105984003,100.9826673,154.52,154.48,8.92]
[1729105984204,6.477,154.7,154.51,8.92]
[1729105984205,4.72,154.66,154.51,8.92]
[1729105984405,8.92,154.62,154.57,8.92]
[1729105984605,3.2346,154.59,154.57,12.17802692]
[1729105985209,8.92,154.62,154.57,12.17802692]
[1729105985901,3.2346,154.59,154.57,12.17802692]
[1729105986098,8.92,154.61,154.57,12.17802692]
[1729105986302,8.92,154.61,154.57,3.25802692]
[1729105986509,8.92,154.61,154.55,13.64]
[1729105987011,8.92,154.61,154.55,16.91068642]
[1729105987210,8.92,154.61,154.55,20.14598642]